bitfinex-derivatives/quotes_BNBF0:USTF0_20250309
["timestamp","ask_amount","ask_price","bid_price","bid_amount"]
[1741479788123,0.89892965,592.35,591.77,4.288]
[1741479788325,0.89892965,592.34,591.77,4.288]
[1741479788527,0.89892965,592.33,591.77,4.288]
[1741479788725,0.33753565,592.53,591.77,4.288]
[1741479788930,0.29388541,592.37,591.77,4.288]
[1741479789126,0.89874362,592.36,591.77,4.288]
[1741479789332,0.89874362,592.35,591.77,4.288]
[1741479789523,0.89874362,592.34,591.77,4.288]
[1741479789824,0.89866584,592.33,591.77,4.288]
[1741479790024,0.33753565,592.53,591.77,4.288]
[1741479790330,0.89861354,592.52,591.77,4.288]
[1741479790530,0.89861354,592.51,591.77,4.288]
[1741479790726,0.89861354,592.5,591.77,4.288]
[1741479790924,0.89861354,592.49,591.77,5.29]
[1741479791123,0.89861354,592.48,591.77,5.29]
[1741479791327,0.89861354,592.47,591.77,5.29]
[1741479791623,0.89861354,592.46,591.77,5.29]
[1741479791830,0.89861354,592.45,591.77,5.29]
[1741479792028,0.89861354,592.44,591.77,5.29]
[1741479792229,0.89861354,592.43,591.77,5.29]
[1741479792424,0.89861354,592.42,591.77,5.29]
[1741479792625,0.89861354,592.41,591.77,5.29]
[1741479792829,0.89861354,592.4,591.77,5.29]
[1741479793132,0.89861354,592.39,591.77,5.29]
[1741479793429,0.89861354,592.38,591.77,5.29]
[1741479793626,0.89861354,592.37,591.77,5.29]
[1741479793831,0.89861354,592.36,591.77,5.29]
[1741479794032,0.33753565,592.53,591.77,5.979]
[1741479794033,0.89861354,592.35,591.77,5.979]
[1741479794224,0.29387672,592.38,591.77,5.979]
[1741479794428,0.89841145,592.37,591.77,5.979]
[1741479794631,0.89841145,592.36,591.77,5.979]
[1741479794931,0.29387672,592.38,591.77,5.979]
[1741479795131,0.89839897,592.37,591.77,5.979]
[1741479795331,0.89839897,592.36,591.77,5.979]
[1741479795530,0.29387672,592.38,591.77,5.979]
[1741479795733,0.89837887,592.37,591.77,5.979]
[1741479795930,0.89837887,592.36,591.77,5.979]
[1741479796129,0.29387672,592.38,591.77,5.979]
[1741479796332,0.89837733,592.37,591.77,5.979]
[1741479796527,0.33753565,592.53,591.77,5.979]
[1741479796731,0.29385811,592.46,591.77,5.979]
[1741479796930,0.89845483,592.45,591.77,5.979]
[1741479797127,0.89845483,592.44,591.77,5.979]
[1741479797326,0.89835156,592.43,591.77,5.979]
[1741479797526,1.25612364,593.0,591.77,5.979]
[1741479797728,1.54580071,592.99,591.77,5.979]
[1741479797933,1.5458064,592.98,591.77,5.979]
[1741479798133,1.23565431,592.97,591.77,5.979]
[1741479798334,1.23565999,592.96,591.77,5.979]
[1741479798535,1.23566568,592.95,591.77,5.979]
[1741479798737,1.23567137,592.94,591.77,5.979]
[1741479798934,1.23567706,592.93,591.77,5.979]
[1741479799134,0.89836912,592.92,591.77,5.979]
[1741479799334,0.89836912,592.91,591.77,5.979]
[1741479799537,0.89836912,592.9,591.77,5.979]
[1741479799736,0.89836912,592.89,591.77,5.979]
[1741479799934,0.89836912,592.88,591.77,5.979]
[1741479800132,0.89836912,592.87,591.77,5.979]
[1741479800334,0.89836912,592.86,591.77,5.979]
[1741479800534,0.89836912,592.85,591.77,5.979]
[1741479800732,0.89836912,592.84,591.77,5.979]
[1741479800932,0.89836912,592.83,591.77,5.979]
[1741479801136,0.89836912,592.82,591.77,5.979]
[1741479801331,0.89836912,592.81,591.77,5.979]
[1741479801535,0.89836912,592.8,591.77,5.979]
[1741479801735,0.89836912,592.79,591.77,5.979]
[1741479802038,0.89836912,592.78,591.78,0.33796343]
[1741479802237,0.89836912,592.77,591.78,0.33796343]
[1741479802439,0.89836912,592.76,591.78,0.33796343]
[1741479802637,0.89836912,592.75,591.78,0.33796343]
[1741479802938,0.89836912,592.74,591.78,0.33796343]
[1741479803139,0.89836912,592.73,591.78,0.33796343]
[1741479803438,0.89836912,592.72,591.78,0.33796343]
[1741479803639,0.89836912,592.71,591.78,0.33796343]
[1741479803838,0.89836912,592.7,591.78,0.33796343]
[1741479804035,0.89836912,592.69,591.78,0.33796343]
[1741479804233,0.89836912,592.68,591.78,0.33796343]
[1741479804434,0.89836912,592.67,591.78,0.33796343]
[1741479804635,0.29378245,592.75,591.78,0.33796343]
[1741479804836,0.89752198,592.74,591.78,0.33796343]
[1741479805039,0.89752198,592.73,591.78,0.33796343]
[1741479805340,0.89752198,592.72,591.78,0.33796343]
[1741479805533,0.89752198,592.71,591.78,2.27796343]
[1741479805734,0.89752198,592.7,591.78,2.27796343]
[1741479805934,0.89752198,592.69,591.78,2.27796343]
[1741479806134,0.89752198,592.68,591.78,2.27796343]
[1741479806340,0.89752198,592.67,591.78,2.27796343]
[1741479806540,0.33730794,592.93,591.78,2.27796343]
[1741479806839,0.89696711,592.92,591.78,2.27796343]
[1741479807039,0.89696711,592.91,591.78,2.27796343]
[1741479807339,0.89696711,592.9,591.78,2.27796343]
[1741479807541,0.89696711,592.89,591.78,2.27796343]
[1741479807740,0.89696711,592.88,591.78,2.27796343]
[1741479807933,0.89696711,592.87,591.78,2.27796343]
[1741479808134,0.89696711,592.86,591.78,3.06396343]
[1741479808337,0.89657027,592.85,591.78,3.06396343]
[1741479808539,0.89657027,592.84,591.78,3.06396343]
[1741479808741,0.89657027,592.83,591.78,3.06396343]
[1741479809035,0.89657027,592.82,591.78,3.06396343]
[1741479809340,0.89657027,592.81,591.78,3.06396343]
[1741479809545,0.89657027,592.8,591.78,3.06396343]
[1741479809733,0.33730794,592.93,591.78,3.06396343]
[1741479809939,0.29374897,592.79,591.78,3.06396343]
[1741479810139,0.8964018,592.78,591.78,3.06396343]
[1741479810339,0.8964018,592.77,591.78,3.06396343]
[1741479810541,0.8964018,592.76,591.78,3.06396343]
[1741479810742,0.8964018,592.75,591.78,3.06396343]
[1741479810942,0.8964018,592.74,591.78,3.06396343]
[1741479811142,0.8964018,592.73,591.78,3.06396343]
[1741479811339,0.8964018,592.72,591.78,3.06396343]
[1741479811542,0.29373409,592.78,591.78,3.06396343]
[1741479811739,0.89619815,592.77,591.78,3.06396343]
[1741479812045,0.89621019,592.76,591.78,3.06396343]
[1741479812251,0.89621019,592.75,591.78,3.06396343]
[1741479812445,0.89621019,592.74,591.78,3.06396343]
[1741479812645,0.29373409,592.78,591.78,3.06396343]
[1741479812846,0.89602456,592.77,591.78,3.06396343]
[1741479813047,0.89602456,592.76,591.78,3.06396343]
[1741479813252,0.89602456,592.75,591.78,3.06396343]
[1741479813449,0.89602456,592.74,591.78,3.06396343]
[1741479813748,0.89602456,592.73,591.78,3.06396343]
[1741479813943,0.29373409,592.78,591.78,3.06396343]
[1741479814146,0.89583951,592.77,591.78,3.06396343]
[1741479814343,0.89583951,592.76,591.78,3.92996343]
[1741479814542,0.89583951,592.75,591.78,3.92996343]
[1741479814743,0.89583951,592.74,591.78,3.92996343]
[1741479814943,0.89583951,592.73,591.78,3.92996343]
[1741479815144,0.89583951,592.72,591.78,3.92996343]
[1741479815342,0.89583951,592.71,591.78,3.92996343]
[1741479815543,0.89583951,592.7,591.78,3.92996343]
[1741479815747,0.89583951,592.69,591.78,3.92996343]
[1741479815949,0.89583951,592.68,591.78,3.92996343]
[1741479816145,0.89583951,592.67,591.78,3.92996343]
[1741479816342,0.29378369,592.69,591.78,3.92996343]
[1741479816544,0.89558565,592.68,591.78,3.92996343]
[1741479816749,0.89558565,592.67,591.78,3.92996343]
[1741479817052,0.89548836,592.66,591.78,3.92996343]
[1741479817247,0.89548836,592.65,591.78,3.92996343]
[1741479817451,0.89548836,592.64,591.78,3.92996343]
[1741479817653,0.89548836,592.63,591.78,3.92996343]
[1741479817845,0.29378369,592.69,591.78,3.92996343]
[1741479818151,0.89553898,592.68,591.78,3.92996343]
[1741479818351,0.89553898,592.67,591.78,3.92996343]
[1741479818554,0.89553898,592.66,591.78,3.92996343]
[1741479818853,0.89553898,592.65,591.78,4.63496343]
[1741479819151,0.89553898,592.64,591.78,4.63496343]
[1741479819354,0.89553898,592.63,591.78,4.63496343]
[1741479819646,0.29378369,592.69,591.78,4.63496343]
[1741479819852,0.89566863,592.68,591.78,4.63496343]
[1741479820053,0.29378369,592.69,591.78,4.63496343]
[1741479820249,0.89564241,592.68,591.78,4.63496343]
[1741479820459,0.89564241,592.67,591.78,4.63496343]
[1741479820652,0.89564241,592.66,591.78,4.63496343]
[1741479820853,0.89564241,592.65,591.78,4.63496343]
[1741479821052,0.89564241,592.64,591.78,4.63496343]
[1741479821259,0.89564241,592.63,591.78,4.63496343]
[1741479821561,0.89564241,592.62,591.78,4.63496343]
[1741479821761,0.29379237,592.66,591.78,4.63496343]
[1741479821962,0.8956574,592.65,591.78,4.63496343]
[1741479822162,0.8956574,592.64,591.78,4.63496343]
[1741479822362,0.8956574,592.63,591.78,4.63496343]
[1741479822562,0.8956574,592.62,591.78,4.63496343]
[1741479822762,0.29379237,592.66,591.78,4.63496343]
[1741479822963,0.89566775,592.65,591.78,4.63496343]
[1741479823163,0.89566775,592.64,591.78,4.63496343]
[1741479823363,0.89566775,592.63,591.78,4.63496343]
[1741479823564,0.89566775,592.62,591.78,4.63496343]
[1741479823764,0.33730794,592.93,591.78,4.63496343]
[1741479824060,0.8957295,592.92,591.78,4.63496343]
[1741479824264,0.89579206,592.91,591.78,4.63496343]
[1741479824460,0.89579206,592.9,591.78,4.63496343]
[1741479824661,0.89579206,592.89,591.78,4.63496343]
[1741479824860,0.89579206,592.88,591.78,4.63496343]
[1741479825059,0.89579206,592.87,591.78,4.63496343]
[1741479825259,0.29376385,592.89,591.78,4.63496343]
[1741479825260,0.89579206,592.86,591.78,4.63496343]
[1741479825459,0.89579206,592.85,591.78,4.63496343]
[1741479825660,0.89579206,592.84,591.78,4.63496343]
[1741479825860,0.89579206,592.83,591.78,4.63496343]
[1741479826164,0.89579206,592.82,591.78,4.63496343]
[1741479826465,0.89587384,592.81,591.78,4.63496343]
[1741479826662,0.89587384,592.8,591.78,4.63496343]
[1741479826862,0.89587384,592.79,591.78,4.63496343]
[1741479827064,0.89587384,592.78,591.78,4.63496343]
[1741479827262,0.89587384,592.77,591.78,5.36796343]
[1741479827466,0.89587384,592.76,591.78,5.36796343]
[1741479827766,0.89587384,592.75,591.78,5.36796343]
[1741479827967,0.89587384,592.74,591.78,5.36796343]
[1741479828168,0.89587384,592.73,591.78,5.36796343]
[1741479828361,0.89587384,592.72,591.78,5.36796343]
[1741479828566,0.29377501,592.8,591.78,5.36796343]
[1741479828567,0.89587384,592.71,591.78,5.36796343]
[1741479828767,0.89587384,592.7,591.78,5.36796343]
[1741479828964,0.89587384,592.69,591.78,5.36796343]
[1741479829163,0.89587384,592.68,591.78,5.36796343]
[1741479829366,0.89587384,592.67,591.78,5.36796343]
[1741479829569,0.89587384,592.66,591.78,5.36796343]
[1741479829766,0.89587384,592.65,591.78,5.36796343]
[1741479830065,0.89587384,592.64,591.78,5.36796343]
[1741479830268,0.89587384,592.63,591.78,5.36796343]
[1741479830567,0.89587384,592.62,591.78,5.36796343]
[1741479830871,0.89587384,592.61,591.78,5.36796343]
[1741479831068,0.29379361,592.65,591.78,5.36796343]
[1741479831367,0.89625604,592.64,591.78,5.36796343]
[1741479831567,0.29379361,592.65,591.78,5.36796343]
[1741479831568,0.89625604,592.63,591.78,5.36796343]
[1741479831769,0.89625604,592.62,591.78,5.36796343]
[1741479831970,0.89625604,592.61,591.78,5.36796343]
[1741479832167,0.29379361,592.65,591.78,5.36796343]
[1741479832361,0.89638846,592.64,591.78,5.36796343]
[1741479832566,0.89638846,592.63,591.78,5.36796343]
[1741479832767,0.89638846,592.62,591.78,5.36796343]
[1741479832963,0.89638846,592.61,591.78,5.36796343]
[1741479833266,0.89646025,592.6,591.78,5.36796343]
[1741479833463,0.29379733,592.62,591.78,5.36796343]
[1741479833666,0.89646588,592.61,591.78,5.36796343]
[1741479833863,0.89646869,592.6,591.78,5.36796343]
[1741479834068,0.29379733,592.62,591.78,5.36796343]
[1741479834268,0.89654789,592.61,591.78,5.36796343]
[1741479834571,0.89654789,592.6,591.78,5.36796343]
[1741479834763,0.29379733,592.62,591.78,5.36796343]
[1741479834963,0.89654353,592.61,591.78,5.36796343]
[1741479835268,0.89654353,592.6,591.78,5.36796343]
[1741479835472,0.29379733,592.62,591.78,5.36796343]
[1741479835670,0.89635439,592.61,591.78,5.36796343]
[1741479835869,0.89635439,592.6,591.78,5.36796343]
[1741479836071,0.29379733,592.62,591.78,5.36796343]
[1741479836372,0.89644735,592.61,591.78,5.36796343]
[1741479836669,0.89644735,592.6,591.78,5.36796343]
[1741479836870,0.89644735,592.59,591.78,5.36796343]
[1741479837171,0.29379733,592.62,591.78,5.36796343]
[1741479838774,0.33730794,592.93,591.78,5.36796343]
[1741479838974,0.89678385,592.92,591.78,5.36796343]
[1741479839173,0.89678385,592.91,591.78,5.36796343]
[1741479839369,0.89678385,592.9,591.78,5.36796343]
[1741479839679,0.89678385,592.89,591.78,5.36796343]
[1741479839874,0.89678385,592.88,591.78,5.36796343]
[1741479840073,0.89678385,592.87,591.78,5.36796343]
[1741479840269,0.89678385,592.86,591.78,5.36796343]
[1741479840469,0.89678385,592.85,591.78,5.36796343]
[1741479840674,0.89678385,592.84,591.78,5.36796343]
[1741479840976,0.89678385,592.83,591.78,5.36796343]
[1741479841173,0.89678385,592.82,591.78,5.36796343]
[1741479841376,0.89678385,592.81,591.78,5.36796343]
[1741479841569,0.89678385,592.8,591.78,5.36796343]
[1741479841769,0.89678385,592.79,591.78,5.36796343]
[1741479841976,0.29376509,592.8,591.81,1.26216226]
[1741479842276,0.89711072,592.79,591.81,1.26216226]
[1741479842478,0.89711072,592.78,591.81,1.26216226]
[1741479842671,0.89711072,592.77,591.81,1.26216226]
[1741479842873,0.89711072,592.76,591.81,1.26216226]
[1741479843075,0.89711072,592.75,591.81,1.26216226]
[1741479843280,0.89711072,592.74,591.81,1.26216226]
[1741479843572,0.89711072,592.73,591.81,1.26216226]
[1741479843777,0.29376509,592.8,591.81,1.26216226]
[1741479843976,0.89735807,592.79,591.81,1.26216226]
[1741479844174,0.89744131,592.78,591.81,1.26216226]
[1741479844377,0.29376509,592.8,591.81,1.26216226]
[1741479844378,0.89744131,592.77,591.81,1.26216226]
[1741479844581,0.89744131,592.76,591.81,1.26216226]
[1741479844873,0.89744131,592.75,591.81,1.26216226]
[1741479845080,0.89744131,592.74,591.79,1.26216226]
[1741479845282,0.89744131,592.73,591.8,0.33795201]
[1741479845480,0.29376509,592.8,591.8,0.33795201]
[1741479845779,0.89740628,592.79,591.8,0.33795201]
[1741479845979,0.89740628,592.78,591.8,0.33795201]
[1741479846180,0.89752787,592.77,591.8,0.33795201]
[1741479846380,0.29376509,592.8,591.8,0.33795201]
[1741479846579,0.8974312,592.79,591.8,0.33795201]
[1741479846774,0.8974312,592.78,591.8,0.33795201]
[1741479846981,0.8974312,592.77,591.8,0.33795201]
[1741479847179,0.8974312,592.76,591.8,0.33795201]
[1741479847380,0.29376509,592.8,591.8,0.33795201]
[1741479847581,0.89744942,592.79,591.8,0.33795201]
[1741479847781,0.33730794,592.93,591.8,0.33795201]
[1741479847782,0.89744942,592.78,591.8,0.33795201]
[1741479847975,0.89744942,592.77,591.8,0.33795201]
[1741479848181,0.29373162,592.78,591.8,0.33795201]
[1741479848478,0.89746284,592.77,591.8,0.33795201]
[1741479848678,0.89746284,592.76,591.8,0.33795201]
[1741479848883,0.8974245,592.75,591.8,0.33795201]
[1741479849082,0.8974245,592.74,591.8,0.33795201]
[1741479849283,0.29373162,592.78,591.8,0.33795201]
[1741479849482,0.89746791,592.77,591.8,0.33795201]
[1741479849784,0.89746791,592.76,591.8,0.33795201]
[1741479849983,0.89746791,592.75,591.8,0.33795201]
[1741479850176,0.89751272,592.74,591.8,0.33795201]
[1741479850377,0.89751272,592.73,591.8,0.33795201]
[1741479850578,0.89751272,592.72,591.8,0.33795201]
[1741479850782,0.89751272,592.71,591.8,0.33795201]
[1741479850981,0.89751272,592.7,591.8,0.33795201]
[1741479851181,0.89751272,592.69,591.8,0.33795201]
[1741479851479,0.89751272,592.68,591.81,1.26216226]
[1741479851678,0.89751272,592.67,591.82,0.33794059]
[1741479851880,0.29373162,592.78,591.82,0.33794059]
[1741479852082,0.89768709,592.77,591.82,0.33794059]
[1741479852282,0.89768709,592.76,591.82,0.33794059]
[1741479852581,0.29373162,592.78,591.82,0.33794059]
[1741479852582,0.89768709,592.75,591.82,0.33794059]
[1741479852781,0.89768709,592.74,591.82,0.33794059]
[1741479853083,0.89768709,592.73,591.82,0.33794059]
[1741479853283,0.89768709,592.72,591.87,1.26216226]
[1741479853579,0.89768709,592.71,591.88,0.33790633]
[1741479853782,0.89768709,592.7,591.88,0.33790633]
[1741479853979,0.89768709,592.69,591.88,0.33790633]
[1741479854181,0.89768709,592.68,591.89,0.982]
[1741479854380,0.29373162,592.78,591.9,0.33789491]
[1741479854381,0.89811235,592.67,591.9,0.33789491]
[1741479854578,0.89811235,592.66,591.9,0.33789491]
[1741479854778,0.89811235,592.65,591.9,0.33789491]
[1741479854977,0.89811235,592.64,591.9,0.98989491]
[1741479855184,0.89811235,592.63,591.9,0.98989491]
[1741479855385,0.89811235,592.62,591.9,0.98989491]
[1741479855685,0.89811235,592.61,591.9,0.98989491]
[1741479855883,0.89811235,592.6,591.9,0.98989491]
[1741479856079,0.29373162,592.78,591.9,0.98989491]
[1741479856080,0.89811235,592.59,591.9,0.652]
[1741479856386,0.89811235,592.58,591.9,0.652]
[1741479856585,0.89811235,592.57,591.9,0.652]
[1741479856786,0.89811235,592.56,591.9,0.652]
[1741479856987,0.89811235,592.55,591.9,0.652]
[1741479857287,0.89811235,592.54,591.9,0.652]
[1741479857586,0.89811235,592.53,591.9,0.652]
[1741479857782,1.25612364,593.51,591.9,0.652]
[1741479857987,0.29379237,592.58,591.9,0.652]
[1741479858188,0.89865472,592.57,591.9,0.652]
[1741479858488,0.89865472,592.56,591.9,1.628]
[1741479858688,0.89865472,592.55,591.9,1.628]
[1741479858988,0.89865472,592.54,591.9,1.628]
[1741479859182,1.25612364,593.42,591.9,1.628]
[1741479859183,0.89865472,592.53,591.9,1.628]
[1741479859383,0.89865472,592.52,591.9,1.628]
[1741479859585,0.89865472,592.51,591.9,1.628]
[1741479859785,0.89865472,592.5,591.9,1.628]
[1741479859988,0.89865472,592.49,591.9,1.628]
[1741479860188,0.29380849,592.53,591.9,1.628]
[1741479860387,0.8987455,592.52,591.9,1.628]
[1741479860584,0.8987455,592.51,591.9,1.628]
[1741479860789,0.8987455,592.5,591.9,1.628]
[1741479860990,0.8987455,592.49,591.9,1.628]
[1741479861190,0.29380849,592.53,591.9,1.628]
[1741479861383,0.89878643,592.52,591.9,1.628]
[1741479861588,0.89878643,592.51,591.9,1.628]
[1741479861891,0.89878643,592.5,591.9,1.628]
[1741479862191,0.29380849,592.53,591.9,1.628]
[1741479862384,0.89887116,592.52,591.9,1.628]
[1741479862587,0.89887116,592.51,591.9,2.413]
[1741479862790,0.89887116,592.5,591.9,2.413]
[1741479862990,0.29380601,592.53,591.9,2.413]
[1741479863185,0.89881248,592.52,591.9,2.413]
[1741479863383,0.89881248,592.51,591.9,2.413]
[1741479863586,0.89881248,592.5,591.9,2.413]
[1741479863785,0.89881248,592.49,591.9,2.413]
[1741479863989,0.89881248,592.48,591.9,2.413]
[1741479864189,0.89881248,592.47,591.9,2.413]
[1741479864493,0.89881248,592.46,591.9,2.413]
[1741479864693,0.89881248,592.45,591.9,2.413]
[1741479864894,0.89881248,592.44,591.9,2.413]
[1741479865192,0.29380601,592.53,591.9,2.413]
[1741479865193,0.89881248,592.43,591.9,2.413]
[1741479865388,0.89828442,592.42,591.9,2.413]
[1741479865588,0.89828442,592.41,591.9,2.413]
[1741479865788,0.89828442,592.4,591.9,2.413]
[1741479865986,0.89828442,592.39,591.9,2.413]
[1741479866192,0.89828442,592.38,591.9,2.413]
[1741479866392,0.29380601,592.53,591.9,2.413]
[1741479866393,0.89828442,592.37,591.9,2.413]
[1741479866592,0.89828442,592.36,591.9,2.413]
[1741479866893,0.89828442,592.35,591.9,2.413]
[1741479867094,0.89828442,592.34,591.9,2.413]
[1741479867300,0.89828442,592.33,591.9,2.413]
[1741479867595,0.89828442,592.32,591.9,2.413]
[1741479867796,0.29380601,592.53,591.9,2.413]
[1741479867997,0.89768221,592.52,591.9,2.413]
[1741479868191,0.89768221,592.51,591.9,2.413]
[1741479868391,0.89768221,592.5,591.9,3.236]
[1741479868596,0.89768221,592.49,591.9,3.236]
[1741479868797,0.89730768,592.48,591.9,3.236]
[1741479868997,0.89730768,592.47,591.9,3.236]
[1741479869196,0.89730768,592.46,591.9,3.236]
[1741479869398,0.89730768,592.45,591.9,3.236]
[1741479869593,0.89730768,592.44,591.9,3.236]
[1741479869793,0.89730768,592.43,591.9,3.236]
[1741479869994,0.89730768,592.42,591.9,3.236]
[1741479870297,0.89730768,592.41,591.9,3.236]
[1741479870497,0.89730768,592.4,591.9,3.236]
[1741479870699,0.89730768,592.39,591.9,3.236]
[1741479870898,0.89730768,592.38,591.9,3.236]
[1741479871091,0.89730768,592.37,591.9,3.236]
[1741479871295,0.89730768,592.36,591.9,3.236]
[1741479871495,0.89730768,592.35,591.9,3.236]
[1741479871696,0.89730768,592.34,591.9,3.236]
[1741479871897,0.29387548,592.35,591.9,3.236]
[1741479872095,0.89650975,592.34,591.9,3.236]
[1741479872395,0.29387548,592.35,591.9,3.236]
[1741479872598,0.89632891,592.34,591.9,3.236]
[1741479872799,0.89628147,592.33,591.9,3.236]
[1741479872999,0.89628147,592.32,591.9,3.236]
[1741479873202,0.89628147,592.31,591.9,3.236]
[1741479873402,0.29387548,592.35,591.9,3.236]
[1741479873701,0.89604473,592.34,591.9,3.236]
[1741479873897,0.89604473,592.33,591.9,3.236]
[1741479874100,0.89604473,592.32,591.9,3.236]
[1741479874306,0.29387548,592.35,591.9,3.236]
[1741479874504,0.8957637,592.34,591.9,3.236]
[1741479874700,0.8957637,592.33,591.9,3.236]
[1741479874907,0.8957637,592.32,591.9,3.236]
[1741479875109,1.25612364,593.3,591.9,3.236]
[1741479875310,1.25612364,593.26,591.9,3.236]
[1741479875506,1.20579428,593.25,591.9,3.236]
[1741479875704,1.20579428,593.24,591.9,3.236]
[1741479876012,1.20579428,593.23,591.9,3.236]
[1741479876206,1.20579428,593.22,591.9,3.236]
[1741479876404,1.20579428,593.21,591.9,3.236]
[1741479876713,1.20579428,593.2,591.9,3.236]
[1741479877011,1.20579428,593.19,591.9,3.236]
[1741479877209,1.20579428,593.18,591.9,3.236]
[1741479877412,1.20579428,593.17,591.9,3.236]
[1741479877610,1.20579428,593.16,591.9,3.236]
[1741479877813,1.20579428,593.15,591.9,3.236]
[1741479878009,1.20579428,593.14,591.9,3.236]
[1741479878213,1.20579428,593.13,591.9,3.236]
[1741479878409,1.20579428,593.12,591.9,3.236]
[1741479878614,1.20579428,593.11,591.9,3.236]
[1741479878810,1.20579428,593.1,591.9,3.897]
[1741479879010,0.89554148,593.09,591.9,3.897]
[1741479879216,1.20579428,593.08,591.9,3.897]
[1741479879416,1.20579428,593.07,591.9,3.897]
[1741479879617,1.20579428,593.06,591.9,3.897]
[1741479879811,1.20579428,593.05,591.9,3.897]
[1741479880011,1.20578445,593.04,591.9,3.897]
[1741479880217,1.20578445,593.03,591.9,3.897]
[1741479880416,1.20578445,593.02,591.9,3.897]
[1741479880616,1.20578445,593.01,591.9,3.897]
[1741479880817,1.20578445,593.0,591.9,3.897]
[1741479881018,0.31024297,592.99,591.9,3.897]
[1741479881218,0.89466795,592.98,591.9,3.897]
[1741479881518,0.31024297,593.0,591.9,3.897]
[1741479881519,1.20491092,592.97,591.9,3.897]
[1741479881720,0.89466795,592.96,591.9,3.897]
[1741479881920,1.20491092,592.95,591.9,3.897]
[1741479882214,0.29380353,593.01,591.9,3.897]
[1741479882215,1.20491092,592.94,591.9,3.897]
[1741479882415,1.20491092,592.93,591.9,3.897]
[1741479882613,1.20491092,592.92,591.9,3.897]
[1741479882918,1.20491092,592.91,591.9,3.897]
[1741479883116,1.20491092,592.9,591.9,3.897]
[1741479883317,1.20491092,592.89,591.9,3.897]
[1741479883520,0.89466795,592.88,591.9,3.897]
[1741479883724,1.20491092,592.87,591.9,3.897]
[1741479883919,1.20491092,592.86,591.9,3.897]
[1741479884123,1.20491092,592.85,591.9,3.897]
[1741479884322,1.20491092,592.84,591.9,3.897]
[1741479884518,1.20491092,592.83,591.9,3.897]
[1741479884720,1.20491092,592.82,591.9,3.897]
[1741479885024,1.20491092,592.81,591.9,3.897]
[1741479885227,1.20491092,592.8,591.9,3.897]
[1741479885421,1.20491092,592.79,591.9,3.897]
[1741479885623,1.20491092,592.78,591.9,3.897]
[1741479885818,1.54230991,592.77,591.9,3.897]
[1741479886020,1.5423156,592.76,591.9,3.897]
[1741479886224,1.54232129,592.75,591.9,3.897]
[1741479886425,1.54232698,592.74,591.9,3.897]
[1741479886631,1.54233268,592.73,591.9,3.897]
[1741479886822,1.2320954,592.72,591.9,3.897]
[1741479887022,1.23210109,592.71,591.9,3.897]
[1741479887224,1.23210678,592.7,591.9,3.897]
[1741479887532,0.89466795,592.69,591.9,3.897]
[1741479887825,0.89466795,592.68,591.9,3.897]
[1741479888030,0.89466795,592.67,591.9,3.897]
[1741479888225,0.89466795,592.66,591.9,3.897]
[1741479888430,1.23213525,592.65,591.9,3.897]
[1741479888630,1.23214095,592.64,591.9,3.897]
[1741479888832,0.89466795,592.63,591.9,3.897]
[1741479889027,0.89466795,592.62,591.9,3.897]
[1741479889231,0.89466795,592.61,591.9,3.897]
[1741479889532,0.89466795,592.6,591.9,3.897]
[1741479889732,0.89466795,592.59,591.9,3.897]
[1741479889931,0.89466795,592.58,591.9,3.897]
[1741479890130,0.89466795,592.57,591.9,3.897]
[1741479890330,0.89466795,592.56,591.9,3.897]
[1741479890529,0.89466795,592.55,591.9,3.897]
[1741479890830,0.89466795,592.54,591.9,3.897]
[1741479891034,0.89466795,592.53,591.9,4.711]
[1741479891331,0.89316817,592.52,591.9,4.711]
[1741479891631,0.89316817,592.51,591.9,4.711]
[1741479891832,0.89316817,592.5,591.9,4.711]
[1741479892033,0.89316817,592.49,591.9,4.711]
[1741479892229,0.89316817,592.48,591.9,4.711]
[1741479892434,0.89316817,592.47,591.9,4.711]
[1741479892636,0.89316817,592.46,591.9,4.711]
[1741479892832,0.89316817,592.45,591.9,4.711]
[1741479893033,0.89316817,592.44,591.9,4.711]
[1741479893335,0.89316817,592.43,591.9,4.711]
[1741479893538,0.89316817,592.42,591.9,4.711]
[1741479893739,0.89316817,592.41,591.9,4.711]
[1741479893937,0.89316817,592.4,591.9,4.711]
[1741479894136,0.89316817,592.39,591.9,4.711]
[1741479894437,0.89316817,592.38,591.9,4.711]